[Event "III Duchamp Open 2019"]
[Site "Rio de Janeiro"]
[Date "2019.12.11"]
[Round "6.9"]
[White "Labussiere, Victor"]
[Black "Matsuura, Everaldo"]
[Result "1/2-1/2"]
[ECO "A09"]
[WhiteElo "2295"]
[BlackElo "2448"]
[Annotator "NA"]
[PlyCount "71"]
[EventDate "2019.12.07"]
[EventType "swiss"]
[EventCountry "BRA"]
[SourceTitle "playchess.com"]
[Source "ChessBase"]
[SourceQuality "1"]
[TimeControl "40/5400+30:1800+30"]

1. Nf3 {[%emt 0:03:32]} d5 {[%emt 0:00:10]} 2. c4 {[%emt 0:02:12]} d4 {[%emt 0:00:19]} 3. b4 {[%emt 0:01:15]} f6 {[%emt 0:00:16]} 4. Na3 {[%emt 0:04:21]} e5 {[%emt 0:01:41]} 5. Nc2 {[%emt 0:00:15]} c5 {[%emt 0:19:08]} 6. bxc5 {[%emt 0:07:14]} Bxc5 {[%emt 0:00:47]} 7. d3 {[%emt 0:00:17]} Ne7 {[%emt 0:01:04]} 8. g3 {[%emt 0:05:25]} O-O {[%emt 0:05:47]} 9. Bg2 {[%emt 0:01:00]} Nbc6 {[%emt 0:04:39]} 10. O-O {[%emt 0:06:47]} Bg4 {[%emt 0:02:52]} 11. Nd2 {[%emt 0:06:43]} f5 {[%emt 0:01:28]} 12. Rb1 {[%emt 0:15:15]} Rb8 $11 {[%emt 0:01:01]} 13. Rb5 {[%emt 0:02:56]} b6 {[%emt 0:03:20]} 14. Nb3 {[%emt 0:20:08]} Bd6 {[%emt 0:04:20]} 15. Bg5 {[%emt 0:00:54]} Qc7 {[%emt 0:04:06]} 16. Bxe7 {[%emt 0:01:36]} Nxe7 {[%emt 0:04:34]} 17. Nb4 {[%emt 0:00:32]} Bxb4 {[%emt 0:05:45]} 18. Rxb4 {[%emt 0:00:04]} Qd6 {[%emt 0:06:06]} 19. Rb5 {[%emt 0:03:15]} a6 {[%emt 0:12:30]} 20. c5 {[%emt 0:00:55]} bxc5 {[%emt 0:02:09]} 21. Rxc5 {[%emt 0:00:04]} Rfc8 {[%emt 0:00:27]} 22. Rxc8+ {[%emt 0:02:47]} Rxc8 {[%emt 0:00:18]} 23. Qd2 {[%emt 0:00:23]} Nd5 {[%emt 0:01:48]} 24. Bxd5+ {[%emt 0:00:39]} Qxd5 {[%emt 0:00:08]} 25. f3 {[%emt 0:00:14]} Bh5 {[%emt 0:02:19]} 26. Rc1 {[%emt 0:01:51]} Re8 {[%emt 0:02:31]} 27. Rc5 {[%emt 0:05:29]} Qd6 {[%emt 0:00:15]} 28. Qc1 {[%emt 0:00:05]} Bf7 {[%emt 0:01:28]} 29. Rc8 {[%emt 0:00:45]} Qd7 {[%emt 0:04:18]} 30. Rxe8+ {[%emt 0:00:51]} Qxe8 {[%emt 0:00:07]} 31. Qc5 {[%emt 0:02:18]} g6 {[%emt 0:01:41]} 32. Qd6 {[%emt 0:00:55]} Qe6 {[%emt 0:04:35]} 33. Qd8+ {[%emt 0:02:35]} Qe8 {[%emt 0:00:20]} 34. Qd6 {[%emt 0:01:46]} Qe6 {[%emt 0:00:15]} 35. Qd8+ {[%emt 0:01:05]} Qe8 {[%emt 0:00:25]} 36. Qd6 {[%emt 0:01:01]} 1/2-1/2

[Event "III Duchamp Open 2019"]
[Site "Rio de Janeiro"]
[Date "2019.12.11"]
[Round "6.10"]
[White "Abrantes, Tiago Garrido"]
[Black "Zambrana, Oswaldo"]
[Result "0-1"]
[ECO "A32"]
[WhiteElo "2159"]
[BlackElo "2445"]
[Annotator "NA"]
[PlyCount "94"]
[EventDate "2019.12.07"]
[EventType "swiss"]
[EventCountry "BRA"]
[SourceTitle "playchess.com"]
[Source "ChessBase"]
[SourceQuality "1"]
[TimeControl "40/5400+30:1800+30"]

1. d4 {[%emt 0:00:00]} Nf6 {[%emt 0:06:02]} 2. c4 {[%emt 0:00:00]} c5 {[%emt 0:00:08]} 3. Nf3 {[%emt 0:00:02]} cxd4 {[%emt 0:04:58]} 4. Nxd4 {[%emt 0:00:10]} e6 {[%emt 0:00:05]} 5. g3 {[%emt 0:00:25]} Qc7 {[%emt 0:00:44]} 6. b3 {[%emt 0:03:22]} Bb4+ {[%emt 0:00:30]} 7. Bd2 {[%emt 0:00:20]} Bc5 {[%emt 0:00:38]} 8. e3 {[%emt 0:24:23]} Qe5 {[%emt 0:09:59]} 9. Nc2 {[%emt 0:16:17]} Ne4 {[%emt 0:05:15]} 10. Bg2 {[%emt 0:01:22]} Nc6 {[%emt 0:11:28]} 11. O-O {[%emt 0:02:33]} Nxd2 {[%emt 0:03:32]} 12. Qxd2 {[%emt 0:00:50]} O-O {[%emt 0:00:34]} 13. Nc3 {[%emt 0:00:21]} Be7 $14 {[%emt 0:04:52]} 14. Rad1 {[%emt 0:06:34]} Rd8 {[%emt 0:01:10]} 15. Nd4 {[%emt 0:04:44]} Nxd4 {[%emt 0:01:47]} 16. exd4 {[%emt 0:02:39]} Qh5 {[%emt 0:08:01]} 17. Qe3 {[%emt 0:02:53]} d6 {[%emt 0:04:18]} 18. Rfe1 {[%emt 0:01:19]} Bf8 {[%emt 0:01:05]} 19. h3 {[%emt 0:02:27]} Qa5 {[%emt 0:02:26]} 20. Kh2 {[%emt 0:06:20]} a6 {[%emt 0:01:01]} 21. Rb1 {[%emt 0:02:19]} g6 {[%emt 0:04:33]} 22. Rec1 {[%emt 0:03:22]} Bg7 {[%emt 0:01:25]} 23. b4 {[%emt 0:01:47]} Qc7 {[%emt 0:04:28]} 24. Ne4 {[%emt 0:03:07]} Bd7 {[%emt 0:06:19]} 25. d5 {[%emt 0:04:20]} Re8 {[%emt 0:04:54]} 26. Qf4 {[%emt 0:01:10]} exd5 {[%emt 0:06:50]} 27. cxd5 {[%emt 0:00:34]} Qb6 {[%emt 0:03:31]} 28. Qxd6 {[%emt 0:01:24]} Qxd6 {[%emt 0:00:07]} 29. Nxd6 {[%emt 0:00:05]} Re2 {[%emt 0:00:11]} 30. Rc7 {[%emt 0:00:15]} Ba4 {[%emt 0:01:02]} 31. Rxb7 {[%emt 0:03:17]} Rxf2 {[%emt 0:00:15]} 32. Ne4 {[%emt 0:01:12]} Rxa2 {[%emt 0:00:24]} 33. Kh1 {[%emt 0:01:37]} Rd8 {[%emt 0:00:28]} 34. Nc5 {[%emt 0:00:24]} Bb5 {[%emt 0:00:44]} 35. Bf1 {[%emt 0:02:24]} Rxd5 {[%emt 0:00:50]} 36. Bxb5 {[%emt 0:00:18]} axb5 {[%emt 0:00:01]} 37. Rxb5 {[%emt 0:02:15]} Bf8 {[%emt 0:00:01]} 38. Rb8 {[%emt 0:00:31]} Rdd2 {[%emt 0:00:13]} 39. Ne4 {[%emt 0:00:19]} Re2 {[%emt 0:00:10]} 40. Nc3 {[%emt 0:01:17]} Rh2+ {[%emt 0:00:09]} 41. Kg1 {[%emt 0:30:00]} Rag2+ {[%emt 0:31:23]} 42. Kf1 {[%emt 0:00:01]} Rxg3 {[%emt 0:00:13]} 43. Ne4 {[%emt 0:01:21]} Rgxh3 {[%emt 0:01:42]} 44. Rd1 {[%emt 0:00:59]} Rh1+ {[%emt 0:00:19]} 45. Kg2 {[%emt 0:00:18]} R3h2+ {[%emt 0:01:49]} 46. Kg3 {[%emt 0:00:01]} Rxd1 {[%emt 0:00:13]} 47. Kxh2 {[%emt 0:00:02]} Kg7 {[%emt 0:00:00]} 0-1

[Event "III Duchamp Open 2019"]
[Site "Rio de Janeiro"]
[Date "2019.12.11"]
[Round "6.11"]
[White "Ribeiro, Matheus Mendes Domin"]
[Black "Von Buelow, Georg"]
[Result "0-1"]
[ECO "A30"]
[WhiteElo "2061"]
[BlackElo "2363"]
[Annotator "NA"]
[PlyCount "134"]
[EventDate "2019.12.07"]
[EventType "swiss"]
[EventCountry "BRA"]
[SourceTitle "playchess.com"]
[Source "ChessBase"]
[SourceQuality "1"]
[TimeControl "40/5400+30:1800+30"]

1. c4 {[%emt 0:00:00]} b6 {[%emt 0:01:13]} 2. Nf3 {[%emt 0:00:53]} e6 {[%emt 0:00:40]} 3. g3 {[%emt 0:00:25]} c5 {[%emt 0:00:37]} 4. Bg2 {[%emt 0:00:28]} Bb7 {[%emt 0:00:08]} 5. O-O {[%emt 0:00:26]} Nf6 {[%emt 0:00:32]} 6. Nc3 {[%emt 0:02:08]} Be7 {[%emt 0:02:29]} 7. b3 {[%emt 0:00:55]} d6 {[%emt 0:04:02]} 8. Bb2 {[%emt 0:01:33]} a6 {[%emt 0:01:12]} 9. e3 {[%emt 0:06:56]} O-O {[%emt 0:00:50]} 10. d4 {[%emt 0:00:27]} cxd4 {[%emt 0:03:27]} 11. Nxd4 {[%emt 0:01:54]} Qc7 {[%emt 0:02:32]} 12. Bxb7 {[%emt 0:02:06]} Qxb7 {[%emt 0:00:07]} 13. Qf3 {[%emt 0:00:07]} Ra7 {[%emt 0:02:39]} 14. Rfd1 {[%emt 0:02:14]} Rc8 {[%emt 0:00:48]} 15. Qxb7 {[%emt 0:08:38]} Rxb7 {[%emt 0:00:06]} 16. Kf1 {[%emt 0:04:25]} Nc6 {[%emt 0:09:11]} 17. Nxc6 {[%emt 0:01:00]} Rxc6 {[%emt 0:00:02]} 18. Rac1 {[%emt 0:04:41]} h5 {[%emt 0:06:50]} 19. Ne2 {[%emt 0:04:34]} Kh7 {[%emt 0:02:47]} 20. Nd4 {[%emt 0:02:20]} Rc8 {[%emt 0:00:37]} 21. Ke2 {[%emt 0:02:39]} g5 {[%emt 0:02:34]} 22. h3 {[%emt 0:03:10]} Kg6 {[%emt 0:00:56]} 23. Nf3 {[%emt 0:06:37]} Ne4 {[%emt 0:02:29]} 24. g4 {[%emt 0:01:31]} hxg4 {[%emt 0:00:52]} 25. hxg4 {[%emt 0:00:00]} Rbc7 {[%emt 0:06:46]} 26. Nd4 {[%emt 0:02:59]} Bf6 {[%emt 0:02:35]} 27. f4 {[%emt 0:11:01]} Rh8 {[%emt 0:14:23]} 28. Kf3 {[%emt 0:00:47]} Nc5 {[%emt 0:00:41]} 29. Rh1 {[%emt 0:00:56]} Rcc8 {[%emt 0:01:32]} 30. Rcd1 {[%emt 0:02:26]} e5 {[%emt 0:04:16]} 31. Nf5 {[%emt 0:01:00]} e4+ {[%emt 0:05:54]} 32. Kg3 {[%emt 0:02:09]} Bxb2 {[%emt 0:00:39]} 33. Ne7+ {[%emt 0:01:39]} Kg7 {[%emt 0:00:51]} 34. Nxc8 {[%emt 0:00:37]} Rxc8 {[%emt 0:00:03]} 35. Rxd6 {[%emt 0:01:20]} b5 {[%emt 0:01:26]} 36. cxb5 {[%emt 0:04:34]} axb5 {[%emt 0:00:08]} 37. Rb6 {[%emt 0:00:46]} Ne6 {[%emt 0:01:45]} 38. f5 {[%emt 0:07:20]} Be5+ {[%emt 0:01:21]} 39. Kh3 {[%emt 0:00:06]} Nc7 {[%emt 0:01:02]} 40. Rc6 {[%emt 0:02:08]} Ra8 {[%emt 0:03:16]} 41. Rc2 {[%emt 0:36:50]} Nd5 {[%emt 0:43:05]} 42. Rc5 {[%emt 0:00:00]} Rh8+ {[%emt 0:00:00]} 43. Kg2 {[%emt 0:00:00]} Nxe3+ {[%emt 0:00:00]} 44. Kg1 {[%emt 0:00:00]} Rd8 {[%emt 0:00:00]} 45. Rxe5 {[%emt 0:00:00]} Rd1+ {[%emt 0:00:00]} 46. Kf2 {[%emt 0:00:00]} Nxg4+ {[%emt 0:00:00]} 47. Kg3 {[%emt 0:00:00]} Rxh1 {[%emt 0:00:00]} 48. Kxg4 {[%emt 0:00:00]} Kf6 {[%emt 0:00:00]} 49. Re8 {[%emt 0:00:00]} Rg1+ {[%emt 0:00:00]} 50. Kh3 {[%emt 0:00:00]} Kxf5 {[%emt 0:00:00]} 51. Kh2 {[%emt 0:00:00]} Ra1 {[%emt 0:00:00]} 52. Kg3 {[%emt 0:00:00]} Rxa2 {[%emt 0:00:00]} 53. Rb8 {[%emt 0:00:00]} Ra5 {[%emt 0:00:00]} 54. Rb6 {[%emt 0:00:00]} Ke5 {[%emt 0:00:00]} 55. Kg4 {[%emt 0:00:00]} f5+ {[%emt 0:00:00]} 56. Kxg5 {[%emt 0:00:00]} f4 {[%emt 0:00:00]} 57. b4 {[%emt 0:00:00]} Ra1 {[%emt 0:00:00]} 58. Rxb5+ {[%emt 0:00:00]} Kd4 {[%emt 0:00:00]} 59. Ra5 {[%emt 0:00:00]} Rf1 {[%emt 0:00:00]} 60. Ra2 {[%emt 0:00:00]} f3 {[%emt 0:00:00]} 61. b5 {[%emt 0:00:00]} e3 {[%emt 0:00:00]} 62. b6 {[%emt 0:00:00]} Rb1 {[%emt 0:00:00]} 63. Ra4+ {[%emt 0:00:54]} Kc5 {[%emt 0:00:00]} 64. Re4 {[%emt 0:01:09]} f2 {[%emt 0:00:00]} 65. Rf4 {[%emt 0:00:33]} f1=Q {[%emt 0:00:00]} 66. b7 {[%emt 0:00:08]} Qg2+ {[%emt 0:00:00]} 67. Kh6 {[%emt 0:00:19]} Rh1+ {[%emt 0:00:00]} 0-1

[Event "III Duchamp Open 2019"]
[Site "Rio de Janeiro"]
[Date "2019.12.11"]
[Round "6.12"]
[White "Limp, Eduardo Thelio"]
[Black "Alboredo, Julia"]
[Result "1-0"]
[ECO "A48"]
[WhiteElo "2356"]
[BlackElo "2184"]
[Annotator "NA"]
[PlyCount "91"]
[EventDate "2019.12.07"]
[EventType "swiss"]
[EventCountry "BRA"]
[SourceTitle "playchess.com"]
[Source "ChessBase"]
[SourceQuality "1"]
[TimeControl "40/5400+30:1800+30"]

1. d4 {[%emt 0:03:29]} Nf6 {[%emt 0:00:00]} 2. Nf3 {[%emt 0:00:17]} g6 {[%emt 0:00:25]} 3. c3 {[%emt 0:00:14]} Bg7 {[%emt 0:00:37]} 4. Qc2 {[%emt 0:00:13]} d5 {[%emt 0:00:46]} 5. Bf4 {[%emt 0:00:09]} O-O {[%emt 0:00:35]} 6. Nbd2 {[%emt 0:00:13]} c5 {[%emt 0:01:39]} 7. e3 {[%emt 0:00:14]} cxd4 {[%emt 0:00:57]} 8. exd4 {[%emt 0:00:11]} Nh5 {[%emt 0:00:44]} 9. Be5 {[%emt 0:12:21]} f6 {[%emt 0:07:46]} 10. Bg3 {[%emt 0:06:50]} e5 {[%emt 0:06:48]} 11. dxe5 {[%emt 0:08:25]} fxe5 {[%emt 0:01:58]} 12. O-O-O {[%emt 0:00:22]} Nc6 {[%emt 0:13:53]} 13. Kb1 {[%emt 0:09:41]} Bf5 {[%emt 0:22:36]} 14. Bd3 {[%emt 0:00:31]} Rc8 {[%emt 0:13:13]} 15. Bxf5 gxf5 16. Bh4 {[%emt 0:07:10]} Qb6 {[%emt 0:02:59]} 17. Qb3 {[%emt 0:04:21]} Qc5 {[%emt 0:06:34]} 18. Ng5 {[%emt 0:11:50]} Rfe8 {[%emt 0:04:34]} 19. Nde4 {[%emt 0:09:10]} fxe4 {[%emt 0:00:59]} 20. Rxd5 {[%emt 0:00:11]} Na5 {[%emt 0:00:44]} 21. Rxc5+ {[%emt 0:00:26]} Nxb3 {[%emt 0:00:07]} 22. Rxc8 {[%emt 0:00:10]} Rxc8 {[%emt 0:02:49]} 23. axb3 {[%emt 0:00:09]} Nf4 {[%emt 0:01:46]} 24. Nxe4 {[%emt 0:06:02]} Nxg2 {[%emt 0:00:26]} 25. Bg3 {[%emt 0:01:22]} Rf8 {[%emt 0:03:08]} 26. Rd1 {[%emt 0:00:42]} h5 {[%emt 0:02:13]} 27. h4 {[%emt 0:04:44]} b6 {[%emt 0:01:26]} 28. b4 {[%emt 0:01:13]} Nf4 {[%emt 0:00:35]} 29. Rd2 {[%emt 0:01:26]} Bh6 {[%emt 0:01:40]} 30. Rd6 {[%emt 0:00:24]} Kg7 {[%emt 0:00:36]} 31. b5 {[%emt 0:01:19]} Rf7 {[%emt 0:00:31]} 32. Kc2 {[%emt 0:00:11]} Ng6 {[%emt 0:01:04]} 33. Kd3 {[%emt 0:04:15]} Bf4 {[%emt 0:00:12]} 34. Kc4 {[%emt 0:00:37]} Ne7 {[%emt 0:00:49]} 35. Rd7 {[%emt 0:00:42]} Nf5 {[%emt 0:00:47]} 36. Rxf7+ {[%emt 0:00:45]} Kxf7 {[%emt 0:00:01]} 37. Kd5 {[%emt 0:00:24]} Ne7+ {[%emt 0:01:11]} 38. Kd6 {[%emt 0:00:18]} Bxg3 {[%emt 0:01:13]} 39. fxg3 {[%emt 0:00:25]} Nf5+ {[%emt 0:00:31]} 40. Kxe5 {[%emt 0:00:16]} Ne3 {[%emt 0:00:10]} 41. b3 {[%emt 0:32:14]} Kg6 {[%emt 0:30:49]} 42. c4 {[%emt 0:00:42]} Kf7 {[%emt 0:00:33]} 43. Nd6+ {[%emt 0:00:31]} Kg6 {[%emt 0:00:28]} 44. Nc8 {[%emt 0:00:09]} Nf1 {[%emt 0:00:04]} 45. Nxa7 {[%emt 0:00:42]} Nxg3 {[%emt 0:00:27]} 46. c5 {[%emt 0:00:28]} 1-0

[Event "III Duchamp Open 2019"]
[Site "Rio de Janeiro"]
[Date "2019.12.11"]
[Round "6.13"]
[White "Rocha, Vitor Firmo de Souza"]
[Black "Guimaraes, Diogo Duarte"]
[Result "0-1"]
[ECO "C68"]
[WhiteElo "2169"]
[BlackElo "2322"]
[Annotator "NA"]
[PlyCount "96"]
[EventDate "2019.12.07"]
[EventType "swiss"]
[EventCountry "BRA"]
[SourceTitle "playchess.com"]
[Source "ChessBase"]
[SourceQuality "1"]
[TimeControl "40/5400+30:1800+30"]

1. e4 {[%emt 0:07:53]} e5 {[%emt 0:05:46]} 2. Nf3 {[%emt 0:00:22]} Nc6 {[%emt 0:00:04]} 3. Bb5 {[%emt 0:00:05]} a6 {[%emt 0:01:16]} 4. Bxc6 {[%emt 0:00:34]} dxc6 {[%emt 0:00:05]} 5. d4 {[%emt 0:00:06]} exd4 {[%emt 0:02:03]} 6. Qxd4 {[%emt 0:00:06]} Qxd4 {[%emt 0:02:14]} 7. Nxd4 {[%emt 0:00:05]} c5 {[%emt 0:00:03]} 8. Ne2 {[%emt 0:00:26]} b6 {[%emt 0:00:08]} 9. Bf4 {[%emt 0:01:03]} Bb7 {[%emt 0:00:32]} 10. Nbc3 {[%emt 0:00:31]} O-O-O {[%emt 0:00:26]} 11. Rd1 {[%emt 0:00:15]} Rxd1+ {[%emt 0:01:10]} 12. Kxd1 {[%emt 0:00:05]} f5 {[%emt 0:00:24]} 13. f3 {[%emt 0:00:44]} fxe4 {[%emt 0:00:15]} 14. Nxe4 {[%emt 0:00:05]} Bxe4 {[%emt 0:00:37]} 15. fxe4 {[%emt 0:00:06]} Nf6 {[%emt 0:00:03]} 16. Ng3 {[%emt 0:00:52]} Bd6 {[%emt 0:00:25]} 17. Bxd6 {[%emt 0:01:00]} cxd6 {[%emt 0:00:00]} 18. Re1 {[%emt 0:01:52]} Re8 {[%emt 0:01:47]} 19. Re2 {[%emt 0:05:45]} Kd7 {[%emt 0:01:12]} 20. Kd2 {[%emt 0:01:28]} Re5 {[%emt 0:05:27]} 21. c4 {[%emt 0:00:54]} b5 {[%emt 0:00:35]} 22. a3 {[%emt 0:05:53]} h5 {[%emt 0:04:05]} 23. h4 {[%emt 0:00:22]} g5 {[%emt 0:00:44]} 24. hxg5 {[%emt 0:09:05]} Rxg5 {[%emt 0:00:02]} 25. Nf5 {[%emt 0:06:03]} bxc4 {[%emt 0:03:38]} 26. Kc2 {[%emt 0:10:41]} Nxe4 {[%emt 0:00:58]} 27. Ne3 {[%emt 0:04:24]} Ng3 {[%emt 0:01:41]} 28. Rd2 {[%emt 0:01:02]} Kc6 {[%emt 0:06:40]} 29. Nxc4 {[%emt 0:00:12]} d5 {[%emt 0:00:08]} 30. Na5+ {[%emt 0:05:06]} Kb5 {[%emt 0:01:04]} 31. Nb3 {[%emt 0:00:28]} Nf5 {[%emt 0:00:19]} 32. Rf2 {[%emt 0:06:04]} Rxg2 {[%emt 0:00:20]} 33. Rxg2 {[%emt 0:00:16]} Ne3+ {[%emt 0:00:05]} 34. Kd3 {[%emt 0:00:37]} Nxg2 {[%emt 0:00:06]} 35. Nd2 {[%emt 0:00:42]} h4 {[%emt 0:00:52]} 36. Ke2 {[%emt 0:00:31]} c4 {[%emt 0:01:08]} 37. Nf3 {[%emt 0:01:50]} Kc5 {[%emt 0:00:40]} 38. Kf2 {[%emt 0:00:15]} h3 {[%emt 0:00:48]} 39. Kg3 {[%emt 0:00:16]} Ne3 {[%emt 0:01:40]} 40. Nd2 {[%emt 0:00:54]} a5 {[%emt 0:00:40]} 41. Kxh3 {[%emt 0:31:14]} Nd1 {[%emt 0:30:09]} 42. Kg3 {[%emt 0:00:17]} Nxb2 {[%emt 0:00:08]} 43. Kf3 {[%emt 0:00:19]} a4 {[%emt 0:01:53]} 44. Nb1 {[%emt 0:02:25]} d4 {[%emt 0:00:15]} 45. Nd2 {[%emt 0:00:55]} c3 {[%emt 0:00:09]} 46. Ne4+ {[%emt 0:00:07]} Kd5 {[%emt 0:00:56]} 47. Nf6+ {[%emt 0:00:26]} Kc4 {[%emt 0:00:04]} 48. Ke2 {[%emt 0:00:15]} d3+ {[%emt 0:00:04]} 0-1

[Event "III Duchamp Open 2019"]
[Site "Rio de Janeiro"]
[Date "2019.12.11"]
[Round "6.14"]
[White "Lima, Darcy"]
[Black "Andrade, Roberto Luiz Costa"]
[Result "1-0"]
[ECO "D79"]
[WhiteElo "2528"]
[BlackElo "2087"]
[Annotator "ChessBase"]
[PlyCount "131"]
[EventDate "2019.12.07"]
[EventType "swiss"]
[EventCountry "BRA"]
[SourceTitle "playchess.com"]
[Source "ChessBase"]
[SourceQuality "1"]
[TimeControl "40/5400+30:1800+30"]

1. Nf3 {[%emt 0:00:17]} Nf6 {[%emt 0:00:09]} 2. c4 {[%emt 0:01:07]} c6 {[%emt 0:02:14]} 3. g3 {[%emt 0:04:08]} g6 {[%emt 0:02:31]} 4. Bg2 {[%emt 0:00:27]} Bg7 {[%emt 0:00:02]} 5. O-O {[%emt 0:00:18]} O-O {[%emt 0:00:19]} 6. d4 {[%emt 0:00:12]} d5 {[%emt 0:00:51]} 7. cxd5 {[%emt 0:02:12]} cxd5 {[%emt 0:00:18]} 8. Ne5 {[%emt 0:00:19]} Ng4 {[%emt 0:09:09]} 9. Nxg4 {[%emt 0:15:32]} Bxg4 {[%emt 0:00:11]} 10. Nc3 {[%emt 0:00:03]} Nc6 {[%emt 0:04:28]} 11. h3 {[%emt 0:03:49]} Bd7 {[%emt 0:12:07]} 12. Nxd5 {[%emt 0:04:13]} Nxd4 {[%emt 0:04:44]} 13. Bg5 {[%emt 0:01:12]} Re8 {[%emt 0:00:41]} 14. e4 {[%emt 0:01:45]} h6 {[%emt 0:02:58]} 15. Bxh6 {[%emt 0:01:56]} Bxh6 {[%emt 0:02:09]} 16. Qxd4 {[%emt 0:00:08]} Bg7 {[%emt 0:00:19]} 17. Qd2 {[%emt 0:17:22]} Bb5 {[%emt 0:08:35]} 18. Rfd1 {[%emt 0:00:13]} Ba4 {[%emt 0:01:32]} 19. Re1 {[%emt 0:06:31]} e6 {[%emt 0:02:32]} 20. Qb4 {[%emt 0:00:02]} exd5 {[%emt 0:04:46]} 21. Qxa4 {[%emt 0:00:04]} dxe4 {[%emt 0:00:34]} 22. Rxe4 {[%emt 0:00:29]} Rxe4 {[%emt 0:00:21]} 23. Qxe4 {[%emt 0:15:21]} Bxb2 {[%emt 0:02:34]} 24. Rb1 {[%emt 0:00:32]} Bd4 {[%emt 0:18:04]} 25. Rxb7 {[%emt 0:02:54]} Qf6 {[%emt 0:01:43]} 26. Qf3 {[%emt 0:00:20]} Qxf3 {[%emt 0:00:51]} 27. Bxf3 {[%emt 0:00:03]} Rd8 {[%emt 0:00:29]} 28. Be2 {[%emt 0:07:30]} Rd6 {[%emt 0:00:24]} 29. Kg2 {[%emt 0:00:25]} Rf6 {[%emt 0:02:00]} 30. f4 {[%emt 0:02:04]} g5 {[%emt 0:02:01]} 31. Kf3 {[%emt 0:00:51]} gxf4 {[%emt 0:00:48]} 32. gxf4 {[%emt 0:00:02]} Kg7 {[%emt 0:00:53]} 33. Ke4 {[%emt 0:03:32]} Bb6 {[%emt 0:00:57]} 34. Bc4 {[%emt 0:00:08]} Bc5 {[%emt 0:03:18]} 35. f5 {[%emt 0:00:40]} Bf2 {[%emt 0:00:53]} 36. a4 {[%emt 0:02:43]} a5 {[%emt 0:01:36]} 37. Bd5 {[%emt 0:01:45]} Be1 {[%emt 0:02:02]} 38. Ra7 {[%emt 0:00:10]} Bb4 {[%emt 0:01:12]} 39. h4 {[%emt 0:00:28]} Be1 {[%emt 0:00:49]} 40. h5 {[%emt 0:00:06]} Bd2 {[%emt 0:02:52]} 41. Ke5 {[%emt 0:31:53]} Bc3+ {[%emt 0:30:16]} 42. Kf4 {[%emt 0:00:08]} Bd2+ {[%emt 0:01:07]} 43. Kg4 {[%emt 0:02:28]} Bc3 {[%emt 0:02:03]} 44. Ba2 {[%emt 0:04:08]} Bd2 {[%emt 0:01:09]} 45. Bc4 {[%emt 0:00:00]} Bb4 {[%emt 0:00:00]} 46. Kf4 {[%emt 0:00:00]} Bd2+ {[%emt 0:00:00]} 47. Ke4 {[%emt 0:00:00]} Bb4 {[%emt 0:00:00]} 48. h6+ {[%emt 0:00:00]} Kxh6 {[%emt 0:00:00]} 49. Bxf7 {[%emt 0:00:00]} Kg5 {[%emt 0:00:00]} 50. Be6 {[%emt 0:00:00]} Rh6 {[%emt 0:00:00]} 51. Kd5 {[%emt 0:00:00]} Bc3 {[%emt 0:00:00]} 52. Rc7 {[%emt 0:00:00]} Bb4 {[%emt 0:00:00]} 53. Ke5 {[%emt 0:00:00]} Rh1 {[%emt 0:00:00]} 54. Rg7+ {[%emt 0:00:00]} Kh6 {[%emt 0:00:00]} 55. Rg6+ {[%emt 0:00:00]} Kh7 {[%emt 0:00:00]} 56. Bg8+ {[%emt 0:00:00]} Kh8 {[%emt 0:00:00]} 57. Bd5 {[%emt 0:00:00]} Re1+ {[%emt 0:00:00]} 58. Kf6 {[%emt 0:00:00]} Be7+ {[%emt 0:00:39]} 59. Kf7 {[%emt 0:00:00]} Kh7 {[%emt 0:00:20]} 60. f6 {[%emt 0:00:00]} Bb4 {[%emt 0:02:46]} 61. Rg3 {[%emt 0:00:03]} Kh6 {[%emt 0:00:04]} 62. Bf3 {[%emt 0:02:54]} Bc3 {[%emt 0:01:33]} 63. Rg6+ {[%emt 0:00:08]} Kh7 {[%emt 0:00:21]} 64. Rg5 {[%emt 0:01:21]} Bd2 {[%emt 0:01:19]} 65. Rh5+ {[%emt 0:00:16]} Bh6 {[%emt 0:00:10]} 66. Bg4 {[%emt 0:00:13]} 1-0

[Event "III Duchamp Open 2019"]
[Site "Rio de Janeiro"]
[Date "2019.12.11"]
[Round "6.15"]
[White "Alonso, Salvador"]
[Black "Urquiza, Marcello de Albuquer"]
[Result "1-0"]
[ECO "B42"]
[WhiteElo "2481"]
[BlackElo "2075"]
[Annotator "ChessBase"]
[PlyCount "53"]
[EventDate "2019.12.07"]
[EventType "swiss"]
[EventCountry "BRA"]
[SourceTitle "playchess.com"]
[Source "ChessBase"]
[SourceQuality "1"]
[TimeControl "40/5400+30:1800+30"]

1. e4 {[%emt 0:00:00]} c5 {[%emt 0:00:00]} 2. Nf3 {[%emt 0:00:00]} e6 {[%emt 0:00:04]} 3. d4 {[%emt 0:00:32]} cxd4 {[%emt 0:00:10]} 4. Nxd4 {[%emt 0:00:05]} a6 {[%emt 0:00:13]} 5. Bd3 {[%emt 0:01:26]} d6 {[%emt 0:01:22]} 6. O-O {[%emt 0:00:52]} Nf6 {[%emt 0:05:12]} 7. Qe2 {[%emt 0:05:02]} b6 {[%emt 0:02:29]} 8. f4 {[%emt 0:02:14]} Bb7 {[%emt 0:05:46]} 9. Nc3 {[%emt 0:03:31]} b5 {[%emt 0:05:41]} 10. Nf3 {[%emt 0:08:22]} b4 {[%emt 0:12:32]} 11. Na4 {[%emt 0:18:39]} g6 {[%emt 0:12:57]} 12. a3 {[%emt 0:19:43]} bxa3 {[%emt 0:11:26]} 13. b3 {[%emt 0:00:18]} d5 {[%emt 0:03:10]} 14. e5 {[%emt 0:02:10]} Ne4 {[%emt 0:03:03]} 15. Bxe4 {[%emt 0:02:21]} dxe4 {[%emt 0:00:31]} 16. Rd1 {[%emt 0:03:34]} Qc7 {[%emt 0:08:06]} 17. Ng5 {[%emt 0:00:17]} Qc6 {[%emt 0:03:32]} 18. Rd4 {[%emt 0:03:40]} Be7 {[%emt 0:06:51]} 19. Nxe4 {[%emt 0:01:45]} O-O {[%emt 0:00:21]} 20. Bxa3 {[%emt 0:03:19]} Bxa3 {[%emt 0:03:25]} 21. Rxa3 {[%emt 0:00:16]} Nd7 {[%emt 0:00:36]} 22. Rc4 {[%emt 0:02:30]} Qd5 {[%emt 0:11:12]} 23. Nac3 {[%emt 0:01:48]} Rfd8 {[%emt 0:01:47]} 24. Nxd5 {[%emt 0:00:38]} exd5 {[%emt 0:00:03]} 25. Rc7 {[%emt 0:00:26]} dxe4 {[%emt 0:01:01]} 26. Rxb7 {[%emt 0:00:08]} Nc5 {[%emt 0:00:23]} 27. Rb4 {[%emt 0:02:29]} 1-0